Cogmind - Beta 12 *** ADVENTURER MODE // 2023.11.21 @ 17:51:16 Player: Chiefwannatoke Result: Self-destructed Performance ------------- Evolutions (1) 500 Regions Visited (4) 800 Robots Destroyed (11) 55 Value Destroyed (329) 329 Prototype IDs (2) 40 Alien Tech Used (0) 0 Bonus (36) 36 TOTAL SCORE: 1760 Bonus ------- Follower Combat Kills 49 Friendly Fire -13 Cogmind --------- Core Integrity 374/400 Matter 292/300 Energy 250/250 System Corruption 5% Temperature Cool (0) Movement Walking (120) Location -9/Mines Parts ------- > --- POWER (1) -------- Ion Engine > --- PROPULSION (2) --- Aluminum Leg Improved Carbon-fiber Leg > --- UTILITY (4) ------ Small Storage Unit Visual Processing Unit Advanced Targeting Computer Medium Armor Plating > --- WEAPON (2) ------- Gatling Laser Assault Rifle > --- INVENTORY (8) ---- Light Ion Engine Aluminum Leg Aluminum Leg Improved Light Armor Plating Improved Light Armor Plating Improved Shield Generator Assault Rifle Heavy Explosive Trap Peak State ------------ > --- POWER ------------ Ion Engine > --- PROPULSION ------- Aluminum Leg Improved Carbon-fiber Leg > --- UTILITY ---------- Small Storage Unit Visual Processing Unit Advanced Targeting Computer Medium Armor Plating > --- WEAPON ----------- Gatling Laser Assault Rifle > --- INVENTORY -------- Light Ion Engine Light Treads Aluminum Leg Aluminum Leg Improved Light Armor Plating Improved Light Armor Plating Assault Rifle Heavy Explosive Trap [Rating: 20] Favorites ----------- Power Ion Engine Engine Ion Engine Propulsion Aluminum Leg Leg Aluminum Leg Utility Small Storage Unit Storage Small Storage Unit Processor Visual Processing Unit Protection Medium Armor Plating Weapon Assault Rifle Energy Gun Medium Laser Ballistic Gun Assault Rifle Build | -11 -10 -10 -9 -9 ------- Run | Jun Mat Min Mat Min Slots Evolved 2 | . . . 2 . Power . | . . . . . Propulsion . | . . . . . Utility 2 | . . . 2 . Weapon . | . . . . . Parts Attached 15 | 6 3 . 2 4 Power 1 | 1 . . . . Engine 1 | 1 . . . . Core . | . . . . . Reactor . | . . . . . Propulsion 7 | 2 2 . . 3 Treads . | . . . . . Leg 7 | 2 2 . . 3 Wheel . | . . . . . Hover . | . . . . . Flight . | . . . . . Utility 4 | 1 1 . 2 . Device . | . . . . . Storage 1 | 1 . . . . Processor 2 | . 1 . 1 . Hackware . | . . . . . Protection 1 | . . . 1 . Artifact . | . . . . . Weapon 3 | 2 . . . 1 Energy Gun 2 | 1 . . . 1 Energy Cannon . | . . . . . Ballistic Gun 1 | 1 . . . . Ballistic Cannon . | . . . . . Launcher . | . . . . . Special Weapon . | . . . . . Impact Weapon . | . . . . . Slashing Weapon . | . . . . . Piercing Weapon . | . . . . . Special Melee Weapon . | . . . . . Unidentified Prototypes . | . . . . . Corrupted Parts 2 | . . . . 2 System Corruption 4 | . . . . 4 Parts Lost . | . . . . . Power . | . . . . . Propulsion . | . . . . . Utility . | . . . . . Weapon . | . . . . . Highest Loss Streak . | . . . . . To Critical Strikes . | . . . . . Average Slot Usage (%) 97 | . 97 100 86 100 Engine 12 | . 14 14 11 11 Leg 24 | . 28 28 22 22 Storage 12 | . 14 14 11 11 Processor 16 | . 11 14 13 22 Protection 5 | . . . 6 11 Energy Gun 12 | . 14 14 11 11 Ballistic Gun 12 | . 14 14 11 11 Naked Turns . | . . . . . Heaviest Build 23 | 14 14 14 21 23 Greatest Support 28 | 20 20 20 20 28 Greatest Overweight (x) 2 | 2 . . 1 1 Average Overweight (x) . | . . . . . Largest Inventory Capacity 8 | 8 8 8 8 8 Average Capacity 7 | 7 8 8 8 8 Most Carried 8 | 6 8 8 8 8 Average Carried 7 | 3 6 8 7 7 Final Capacity 8 | 8 8 8 8 8 Final Carried 8 | 6 8 8 8 8 Class Distribution -------------------- 100% | Mutant Dominant Class ---------------- Mutant | -10/Materials Mutant | -10/Mines Mutant | -9/Materials Mutant | -9/Mines Resources | -11 -10 -10 -9 -9 ----------- Run | Jun Mat Min Mat Min Matter Collected 346 | 210 79 10 . 47 Remotely . | . . . . . Salvage Created 404 | . 236 . 71 97 Parts 19 | . 12 . 2 5 Haulers Intercepted . | . . . . . Recyclers Shooed . | . . . . . Parts Field Recycled . | . . . . . Retrieved Matter . | . . . . . Parts Self-Destructed . | . . . . . Prevented . | . . . . . Kills | -11 -10 -10 -9 -9 ------- Run | Jun Mat Min Mat Min Combat Hostiles Destroyed 9 | . 5 . 2 2 Guns 9 | . 5 . 2 2 Classes Destroyed 5 | . 2 . 2 1 Tunneler 1 | . . . . 1 Watcher 1 | . 1 . . . Swarmer 1 | . . . 1 . Grunt 7 | . 5 . . 2 Sentry 1 | . . . 1 . Best Kill Streak 4 | . 4 . 1 2 Combat Bots Only 3 | . 3 . 1 2 Max Kills in Single Turn 1 | . 1 . 1 1 Gunslinging . | . . . . . Exploded . | . . . . . Melee . | . . . . . Uniques/NPCs Destroyed . | . . . . . Combat | -11 -10 -10 -9 -9 -------- Run | Jun Mat Min Mat Min Damage Taken 356 | . 212 . 63 81 Core 63 | . 37 . . 26 Absorbed by Shields . | . . . . . Core Remaining (%) 92 | 100 . 85 . . Volleys Fired 52 | . 35 . 9 8 Largest 2 | . 2 . 1 1 Hottest 70 | . 70 . 50 50 Shots Fired 56 | . 38 . 9 9 Gun 56 | . 38 . 9 9 Cannon . | . . . . . Launcher . | . . . . . Special . | . . . . . Kinetic 3 | . 3 . . . Thermal 53 | . 35 . 9 9 Explosive . | . . . . . Electromagnetic . | . . . . . Robot Hit Streak 16 | . 16 . 4 12 Robot Miss Streak 2 | . 2 . 2 1 Penetration Max . | . . . . . Secondary Targets . | . . . . . Shots Hit Robots 48 | . 33 . 6 9 Core Hits 19 | . 12 . 2 5 Critical Kills . | . . . . . Critical Parts Destroyed . | . . . . . Critical Strikes 5 | . 4 . . 1 Burn 5 | . 4 . . 1 Melee Attacks . | . . . . . Impact . | . . . . . Slashing . | . . . . . Piercing . | . . . . . Sneak Attacks . | . . . . . Combat Hostiles . | . . . . . Follow-up Attacks . | . . . . . Damage Inflicted 626 | . 415 5 87 119 Guns 615 | . 415 . 87 113 Cannons . | . . . . . Explosions . | . . . . . Melee . | . . . . . Ramming 11 | . . 5 . 6 Kinetic 15 | . 15 . . . Thermal 600 | . 400 . 87 113 Explosive . | . . . . . Electromagnetic . | . . . . . Impact . | . . . . . Slashing . | . . . . . Piercing . | . . . . . Highest Corruption 5 | . . . . 5 Average Corruption 4 | . . . . 4 Corruption Purged . | . . . . . Corruption Blocked . | . . . . . Effects 2 | . . . . 2 Message Errors 1 | . . . . 1 Data Loss (minor) 1 | . . . . 1 Overload Shots . | . . . . . Overflow Damage . | . . . . . Projectiles . | . . . . . Explosions . | . . . . . Melee . | . . . . . Knockbacks . | . . . . . Impact . | . . . . . Kinetic . | . . . . . Secondary . | . . . . . Self-Inflicted Damage . | . . . . . Shots . | . . . . . Rammed . | . . . . . Targets Rammed 2 | . . 1 . 1 Kicked 2 | . . 1 . 1 Crushed . | . . . . . Highest Temperature 322 | . 322 . 59 66 Average Temperature 88 | . 117 . 25 31 Received Heat Transfer 243 | . 189 . 18 36 Effects 2 | . 2 . . . Energy Bleed 2 | . 2 . . . Siege Activations . | . . . . . Robots Corrupted . | . . . . . Combat Hostiles . | . . . . . Parts Fried . | . . . . . Impact Corruptions . | . . . . . Robots Melted . | . . . . . Combat Hostiles . | . . . . . Parts Melted 6 | . 4 . . 2 Heat Transferred 2134 | . 1480 . 259 395 Parts Sabotaged . | . . . . . Parts Stolen . | . . . . . Parts Stripped . | . . . . . Power Chain Reactions . | . . . . . Missiles Intercepted . | . . . . . Alert | -11 -10 -10 -9 -9 ------- Run | Jun Mat Min Mat Min Peak Influence 217 | . 217 71 121 76 Initial 71 | . . 71 23 39 Average 61 | . 128 71 25 38 Maximum Alert Level 1 | . 1 . . . Low Security (%) 95 | 100 79 100 100 100 Level 1 4 | . 20 . . . Level 2 . | . . . . . Level 3 . | . . . . . Level 4 . | . . . . . Level 5 . | . . . . . High Security . | . . . . . Max Security . | . . . . . Squads Dispatched 1 | . 1 . . . Investigation 1 | . 1 . . . Extermination . | . . . . . Reinforcement . | . . . . . Assault . | . . . . . Garrison . | . . . . . Intercept . | . . . . . Searches Triggered . | . . . . . Construction Impeded . | . . . . . Haulers Reinforced . | . . . . . Active Scanning Responses . | . . . . . Cargo Convoy Interrupts . | . . . . . Stealth | -11 -10 -10 -9 -9 --------- Run | Jun Mat Min Mat Min Distress Signals 3 | . 2 . 1 . Communications Jammed . | . . . . . Distress Signals . | . . . . . Times Spotted 18 | . 10 . 5 3 Peak Tracking Total 4 | . 3 . 4 3 Tactical Retreats 1 | . 1 . . . Traps | -11 -10 -10 -9 -9 ------- Run | Jun Mat Min Mat Min Traps Triggered 2 | . . . . 2 Indirectly . | . . . . . Trap Hack Attempts . | . . . . . Triggered . | . . . . . Disarmed . | . . . . . Reprogrammed . | . . . . . Reused . | . . . . . Traps Extracted . | . . . . . Installed . | . . . . . Triggered . | . . . . . Most Traps Carried 1 | . . . . 1 Machines | -11 -10 -10 -9 -9 ---------- Run | Jun Mat Min Mat Min Machines Disabled . | . . . . . Max in Single Turn . | . . . . . Machines Repaired . | . . . . . Machines Sabotaged . | . . . . . Overloaded Fab Kills . | . . . . . Hacking | -11 -10 -10 -9 -9 --------- Run | Jun Mat Min Mat Min Machines Accessed 4 | . 2 . 1 1 Terminals 3 | . 2 . 1 . Fabricators . | . . . . . Repair Stations . | . . . . . Recycling Units . | . . . . . Scanalyzers . | . . . . . Garrison Access . | . . . . . Total Hacks 12 | . 8 . 3 1 Successful 3 | . . . 2 1 Failed 9 | . 8 . 1 . Catastrophic 1 | . 1 . . . Database Lockouts . | . . . . . Manual 4 | . 4 . . . Terminals 11 | . 8 . 3 . Fabricators . | . . . . . Repair Stations . | . . . . . Recycling Units . | . . . . . Scanalyzers . | . . . . . Garrison Access . | . . . . . Terminal Hacks 3 | . . . 2 1 Prototype ID Bank 1 | . . . 1 . Open Door 1 | . . . . 1 Unreport Threat 1 | . . . 1 . Fabricator Hacks . | . . . . . Repair Station Hacks . | . . . . . Recycling Unit Hacks . | . . . . . Scanalyzer . | . . . . . Garrison Access Hacks . | . . . . . Unauthorized Hacks . | . . . . . Terminals . | . . . . . Fabricators . | . . . . . Repair Stations . | . . . . . Recycling Units . | . . . . . Scanalyzers . | . . . . . Garrison Access . | . . . . . Data Cores Recovered . | . . . . . Used . | . . . . . Hacking Detections 3 | . 2 . 1 . Full Trace Events 2 | . 2 . . . Feedback Events . | . . . . . Feedback Blocked . | . . . . . Robot Schematics Acquired . | . . . . . Robots Built . | . . . . . Authchips . | . . . . . Time . | . . . . . Total Robot Build Rating . | . . . . . Part Schematics Acquired . | . . . . . Parts Built . | . . . . . Authchips . | . . . . . Time . | . . . . . Total Part Build Rating . | . . . . . Parts Repaired . | . . . . . Time . | . . . . . Parts Recycled . | . . . . . Recycled Matter . | . . . . . Retrieved Matter . | . . . . . Retrieved Components . | . . . . . Parts Scanalyzed . | . . . . . Part Schematics Acquired . | . . . . . Parts Damaged . | . . . . . Bothacking | -11 -10 -10 -9 -9 ------------ Run | Jun Mat Min Mat Min Used RIF Installer . | . . . . . Robots Hacked . | . . . . . Non-combat . | . . . . . Combat . | . . . . . Robot Hacks Applied . | . . . . . Relay Couplers Released . | . . . . . Fabnet Peak Effective % . | . . . . . Robots Rewired . | . . . . . Allies Hacked . | . . . . . Hacks Repelled . | . . . . . Allies | -11 -10 -10 -9 -9 -------- Run | Jun Mat Min Mat Min Total Allies 3 | . . 3 . . Largest Group 3 | . . 3 3 2 Highest-Rated Group 40 | . . 40 40 32 Highest-Rated Ally 16 | . . 16 16 16 Total Orders . | . . . . . Ally Attacks 18 | . . . 12 6 Total Damage 199 | . . . 121 78 Kills 4 | . . . 3 1 Allies Corrupted . | . . . . . Allies Melted . | . . . . . Intel | -11 -10 -10 -9 -9 ------- Run | Jun Mat Min Mat Min Robot Analysis Total . | . . . . . Derelict Logs Recovered 2 | . . 1 . 1 Drone Launches . | . . . . . Drone Recoveries . | . . . . . Exploration | -11 -10 -10 -9 -9 ------------- Run | Jun Mat Min Mat Min Turns Passed 1224 | 62 261 281 151 469 Spaces Moved 760 | 39 143 231 85 262 Core 8 | 8 . . . . Treads . | . . . . . Legs 752 | 31 143 231 85 262 Wheels . | . . . . . Hover . | . . . . . Flight . | . . . . . Fastest Speed 50 | 50 120 120 120 120 Average Speed 140 | 122 120 120 151 167 Slowest Speed 190 | 190 120 120 190 190 Overloaded Moves . | . . . . . Propulsion Burnouts . | . . . . . Robots Hopped . | . . . . . Cave-ins Triggered . | . . . . . Exploration Rate (%) 30 | 3 29 53 13 55 Regions Visited 4 Branch Regions 2 Pre-discovered Areas . | . . . . . Known Exits Taken . | . . . . . Unknown Exits Taken 4 | 1 1 1 1 . Scrap Searched 2 | . . 1 . 1 Spaces Dug . | . . . . . Terrain Destroyed . | . . . . . Melee . | . . . . . Projectile . | . . . . . AOE . | . . . . . Terrain Rammed . | . . . . . Walls Destroyed . | . . . . . Machines Disabled . | . . . . . Actions | -11 -10 -10 -9 -9 --------- Run | Jun Mat Min Mat Min Total 862 | 50 193 234 99 286 Wait 19 | . 13 3 . 3 Move 756 | 38 142 230 84 262 Hop . | . . . . . Pick Up 10 | 6 . . 2 2 Fast Attach 9 | 6 1 . 2 . Attach . | . . . . . Detach . | . . . . . Swap 6 | . 2 . . 4 Drop 8 | . . . 2 6 Fire 52 | . 35 . 9 8 Melee . | . . . . . Ram . | . . . . . Kick 2 | . . 1 . 1 Crush . | . . . . . Escape Stasis . | . . . . . Rewire . | . . . . . Trap . | . . . . . Miscellaneous . | . . . . . Route ------- -11/Junkyard -10/Materials -10/Mines -9/Materials -9/Mines History --------- Turn | Location | Event 14 | -11/Junkyard | Discovered new exit (range 15) 63 | -11/Junkyard | Entered Materials 300 | -10/Materials | Build established: Mutant 311 | -10/Materials | Discovered new exit (range 12) 324 | -10/Materials | Entered Mines 342 | -10/Mines | Received a Rocket Launcher from a helpful Derelict 488 | -10/Mines | Learned Materials interactive machine intel 522 | -10/Mines | Assisted by bots powering up and referring to "LRC-V3" 590 | -10/Mines | Discovered new exit (range 8) 605 | -10/Mines | Entered Materials 605 | -9/Materials | Accompanied by 3 allies 605 | -9/Materials | Evolved 2 slots: Utility x2 606 | -9/Materials | Loaded intel: 18 interactive machine locations 692 | -9/Materials | Discovered new exit (range 18) 756 | -9/Materials | Entered Mines 756 | -9/Mines | Accompanied by 2 allies 765 | -9/Mines | Met a Derelict bent on vengeance 949 | -9/Mines | Assembled infested the area 993 | -9/Mines | Found a hidden stash of uninstalled traps 1108 | -9/Mines | Met a Derelict who couldn't figure out how to use a Trap Extractor 1210 | -9/Mines | Learned Materials security intel 1225 | -9/Mines | Self-destructed Last Messages --------------- 01120_ Adv. Targeting Computer temporarily disabled. 01120_ Visual Processing Unit temporarily disabled. 01120_ Dropped Aluminum Leg. 01123_ Integrated Corrupted Gatling Laser (+2). 01123_ Complication: FCS attempts to trigger Gatling Laser. 01123_ Complication: Gatling Laser misfires. 01123_ Dropped Med. Laser. 01123_ T-07 Excavator destroyed. 01125_ Dropped Lgt. Treads. 01126_ Acquired Corrupted Imp. Shield Generator. 01127_ Triggered Explosive Trap. 01127_ An explosion rips through the floor. 01127_ K-01 Serf collects debris. 01129_ U&REKHRXATWMAJRL0CPZNGHOKEOCW7ELU1PPZ 01131_ K-01 Serf collects debris. 01135_ Acquired 27 matter. 01182_ Kicked T-07 Excavator. 01210_ Acquired derelict log, extracted data. Data stored: Materials security intel. 01211_ System corrupted: Component data lost. Map ----- +----------------------------------------------------+ | ???????????????????????????##??????????????? | | ???????????????????????????# ??????????????? | | #??????????????????????????# ??????????????? | | #??????????????????????????# #?????????????? | | #??????????????????????????# #??######?????? | | #??????????????????????????# #### ##????? | | ???????????????????????????# ## =[!!"#????? | | ???????????????????????????# ## = !! #????? | | ?????????# #######????# ### !!##????? | | ???????????"""" #???## ## ###????? | | ???????????"""" ##### ##### % X #????? | | #???????????????????# *%[ % ##???? | | #####???????????????# #####%* %! #???? | | ################# #???##= = ## #???? | | ## #????# ####*!##???? | | ##################### #????## ##??# ##????? | | #???????????????????# #?????####???#|#?????? | | #???????????????##### ########?##### #?????? | | #??????????????## ## #?# #?????? | | ???????????????# ######## #?# #####?????? | | ???????????????# #??????# ### #?????????? | | ??????????????## #??????# #?????????? | | ????????????### #??????##### #?????????? | | ???########## ##?????????# #?????????? | | ???# ######????# #####?????? | | ???# @#????# ##????? | | ???# ######## #### #????# #????? | | ???# #??????#### #??# #????## #????? | | #### #?????????# ##??# #?????## ##????? | | # #?????????# ###???# #??????## ##?????? | | # ####?????????# #?????# #???????# #??????? | | # #????????????# #?????# ######### #??????? | | #????????????# #?????# #??????? | | #????????????# #?????####### ### #??????? | | ###????????????# ?????????### ### ###????? | | ???????????????####?????????# #????? | | ????????????????????????????# """ """ #????? | | ????????????????????????????# """ """ #????? | | ???????????????????????????? """ """ #????? | | ???????????????????????????## #????? | | ????????????????????????????###########????? | | ???????????????????????????????????????????? | | ???????????????????????????????????????????? | | ???????????????????????????????????????????? | | ???????????????????????????????????????????? | | | | | | | | | | | +----------------------------------------------------+ Best States ------------- Heat Dissipation 28 Energy Generation 10 Energy Capacity 250 Matter Stores 300 Matter Capacity 300 Sight Range 18 Terrain Scan Density 10 Armor Coverage 225 Resistance: KI 20 Resistance: TH 20 Resistance: EX 20 Resistance: EM 20 Resistance: I 20 Resistance: S 20 Resistance: P 20 Evasion (%) 55 Targeting Accuracy 8 Offensive Hacking 10 Item Schematics ----------------- None Robot Schematics ------------------ None Fabricated ------------ Nothing Alien Tech Used ----------------- None Achievements -------------- None Challenges ------------ None Game ------ Seed ActuatorOmegaAccelerator Manual? 0 Play Time 00:09:40 Cumulative 79.8 hours Start 2023.11.21 @ 17:43:53 End 2023.11.21 @ 17:51:16 Sessions 1 Manual Loads 0 Difficulty Adventurer Special Mode None Game No. 88 Rogue 35 Adventurer 51 Explorer 2 Win Type - Total 0 Types 0/0/0/0/0/0/0/0/0 Lore% 65 Gallery% 71 Achievement% 59 Wizard Run 0 Options --------- ASCII 0 Keyboard 0 Movement Numpad Keybinds 0 Fullscreen 1 Font 18/SmallcapsGlow Map View 76x50 Tactical HUD 1 Map Filters NONE Filters NONE Steam 1 RUN: c22f5fa9-f915-4ef8-a09c-09ce0e5b91ed